bitfinex-derivatives/quotes_BTCF0:USTF0_20250528
["timestamp","ask_amount","ask_price","bid_price","bid_amount"]
[1748468159805,1.4963017,107470.0,107460.0,0.13366355]
[1748468160410,2.0199817,107470.0,107460.0,0.13366355]
[1748468161407,2.0199817,107470.0,107460.0,0.14659166]
[1748468161707,2.0199817,107470.0,107460.0,0.16081536]
[1748468162411,2.0199817,107470.0,107460.0,0.16080372]
[1748468162607,2.0199817,107470.0,107460.0,0.14792171]
[1748468162901,2.0199817,107470.0,107460.0,0.14792199]
[1748468163101,2.0199817,107470.0,107460.0,0.16082657]
[1748468163704,2.0199817,107470.0,107460.0,0.16082721]
[1748468164100,1.9893817,107470.0,107460.0,0.19012374]
[1748468164407,1.9893817,107470.0,107460.0,0.20436271]
[1748468164610,1.9893817,107470.0,107460.0,0.20436226]
[1748468165414,1.9893817,107470.0,107460.0,0.20436259]
[1748468165604,1.99389725,107470.0,107460.0,0.19012511]
[1748468165805,1.99389725,107470.0,107460.0,0.19144797]
[1748468166010,1.99389725,107470.0,107460.0,0.20435341]
[1748468166210,2.08102618,107470.0,107460.0,0.20435341]
[1748468166411,2.08102618,107470.0,107460.0,0.20435534]
[1748468166611,2.07651063,107470.0,107460.0,0.2043572]
[1748468166911,2.07651063,107470.0,107460.0,0.20439505]
[1748468167110,2.07651063,107470.0,107460.0,0.20439533]
[1748468167312,2.07651063,107470.0,107460.0,0.20439567]
[1748468167710,2.08102618,107470.0,107460.0,0.20439872]
[1748468168510,2.08102618,107470.0,107460.0,0.2044018]
[1748468168699,2.07651063,107470.0,107460.0,0.20440179]
[1748468168903,2.07651063,107470.0,107460.0,0.19016678]
[1748468169100,2.07651063,107470.0,107460.0,0.20440178]
[1748468169305,2.07651063,107470.0,107460.0,0.20440948]
[1748468170514,1.98345863,107470.0,107460.0,0.20440973]
[1748468170714,1.98345863,107470.0,107460.0,0.1901706]
[1748468171013,1.98345863,107470.0,107460.0,0.20441031]
[1748468171314,1.39477863,107470.0,107460.0,0.20444857]
[1748468171517,1.91841863,107470.0,107460.0,0.20444857]
[1748468171809,1.8312897,107470.0,107460.0,0.20441586]
[1748468172009,1.8312897,107470.0,107460.0,0.20440119]
[1748468172315,1.8312897,107470.0,107460.0,0.20440124]
[1748468172706,1.8312897,107470.0,107460.0,0.2044013]
[1748468172911,1.8312897,107470.0,107460.0,0.20440216]
[1748468173308,1.4062097,107470.0,107460.0,0.20743337]
[1748468173510,1.3076497,107470.0,107460.0,0.23614807]
[1748468173802,1.83580525,107470.0,107460.0,0.23614718]
[1748468174007,1.78580525,107470.0,107460.0,0.23614718]
[1748468174314,1.78580525,107470.0,107460.0,0.22327849]
[1748468174513,1.26216525,107470.0,107460.0,0.32301867]
[1748468174721,1.7812897,107470.0,107460.0,0.31030479]
[1748468174906,1.7812897,107470.0,107460.0,0.77236818]
[1748468174907,0.35,107470.0,107460.0,0.77236818]
[1748468175213,0.73856527,107480.0,107470.0,0.1860497]
[1748468175403,0.73856527,107480.0,107470.0,0.31383492]
[1748468175615,0.97205607,107480.0,107470.0,0.4149804]
[1748468175809,0.97205607,107480.0,107470.0,0.41498034]
[1748468176014,0.61125607,107480.0,107470.0,0.57578317]
[1748468176314,0.61125607,107480.0,107470.0,0.77091537]
[1748468176315,0.28014017,107480.0,107470.0,0.77091537]
[1748468176519,0.02378244,107490.0,107480.0,0.1860324]
[1748468176703,0.33378244,107490.0,107480.0,0.25507158]
[1748468176905,0.51979764,107490.0,107480.0,0.68973437]
[1748468177221,0.51979764,107490.0,107480.0,0.6897271]
[1748468177410,0.51979764,107490.0,107480.0,1.05052663]
[1748468177613,0.51979764,107490.0,107480.0,1.03632676]
[1748468177814,0.51979764,107490.0,107480.0,1.05052638]
[1748468179211,0.51979764,107490.0,107480.0,1.16593204]
[1748468179404,0.33378244,107490.0,107480.0,1.18448075]
[1748468179610,0.51840121,107490.0,107480.0,1.1138815]
[1748468179819,0.51840121,107490.0,107480.0,1.11386455]
[1748468180012,0.51840121,107490.0,107480.0,1.25895109]
[1748468180315,0.51840121,107490.0,107480.0,1.17026431]
[1748468180508,0.51840121,107490.0,107480.0,1.18441372]
[1748468180810,0.51840121,107490.0,107480.0,1.18440193]
[1748468181119,0.51840121,107490.0,107480.0,1.18440175]
[1748468181305,0.51840121,107490.0,107480.0,1.13967018]
[1748468181710,0.51840121,107490.0,107480.0,1.12553274]
[1748468182020,0.51840121,107490.0,107480.0,1.13966949]
[1748468182413,0.51840121,107490.0,107480.0,1.12553274]
[1748468182617,0.51840121,107490.0,107480.0,1.13966184]
[1748468183018,0.51840121,107490.0,107480.0,1.12553274]
[1748468183219,0.51840121,107490.0,107480.0,1.13966023]
[1748468183418,0.51840121,107490.0,107480.0,1.13965399]
[1748468183618,0.33238611,107490.0,107480.0,1.13965399]
[1748468183919,0.33238611,107490.0,107480.0,1.13939547]
[1748468184118,0.33238611,107490.0,107480.0,1.13939542]
[1748468184313,0.33238611,107490.0,107480.0,0.97571868]
[1748468184618,0.33238611,107490.0,107480.0,1.22571868]
[1748468184810,0.33238611,107490.0,107480.0,1.03973059]
[1748468185011,0.33238611,107490.0,107480.0,1.22571272]
[1748468185222,0.13238611,107490.0,107480.0,1.1393845]
[1748468185519,0.13238611,107490.0,107480.0,1.22568056]
[1748468185815,0.13238611,107490.0,107480.0,1.15513151]
[1748468186519,0.13238611,107490.0,107480.0,1.21380136]
[1748468186910,0.13238611,107490.0,107480.0,1.21379753]
[1748468187112,0.13238611,107490.0,107480.0,0.96379753]
[1748468187318,0.13238611,107490.0,107480.0,0.84835676]
[1748468187720,0.13238611,107490.0,107480.0,0.96379557]
[1748468187917,0.13238611,107490.0,107480.0,0.96379522]
[1748468188419,0.13238611,107490.0,107480.0,0.92726371]
[1748468188717,0.13238611,107490.0,107480.0,0.95243805]
[1748468188919,0.13238611,107490.0,107480.0,0.96653834]
[1748468189213,0.13238611,107490.0,107480.0,0.96653852]
[1748468189420,0.02238611,107490.0,107480.0,0.85109971]
[1748468190015,0.02238611,107490.0,107480.0,0.85109875]
[1748468190618,0.05278611,107490.0,107480.0,0.85109875]
[1748468191411,0.05278611,107490.0,107480.0,0.96653756]
[1748468191615,0.05278611,107490.0,107480.0,0.87350156]
[1748468192825,0.05278611,107490.0,107480.0,0.7580639]
[1748468193030,0.05278611,107490.0,107480.0,0.75806321]
[1748468193432,0.05278611,107490.0,107480.0,0.87350202]
[1748468193614,0.05278611,107490.0,107480.0,0.87350263]
[1748468193929,0.05278611,107490.0,107480.0,0.8735026]
[1748468194125,0.05278611,107490.0,107480.0,0.85940136]
[1748468194434,0.08548611,107490.0,107480.0,0.7731052]
[1748468194819,0.08548611,107490.0,107480.0,0.78720803]
[1748468195128,0.09000166,107490.0,107480.0,0.7731052]
[1748468195824,0.09000166,107490.0,107480.0,1.01721047]
[1748468196025,0.09000166,107490.0,107480.0,1.0031052]
[1748468197119,0.09000166,107490.0,107480.0,1.01721788]
[1748468197319,0.09000166,107490.0,107480.0,1.00314201]
[1748468198132,0.09000166,107490.0,107480.0,1.01725465]
[1748468198540,0.09000166,107490.0,107480.0,1.0172596]
[1748468199032,0.09000166,107490.0,107480.0,1.01725951]
[1748468200434,0.09000166,107490.0,107480.0,1.00314201]
[1748468200824,0.09000166,107490.0,107480.0,1.01727712]
[1748468201224,0.09000166,107490.0,107480.0,0.95850742]
[1748468201633,0.09000166,107490.0,107480.0,0.95861071]
[1748468201832,0.09000166,107490.0,107480.0,0.95861064]
[1748468202033,0.09000166,107490.0,107480.0,0.94447545]
[1748468202228,0.09000166,107490.0,107480.0,0.95861091]
[1748468202435,0.09000166,107490.0,107480.0,0.95862428]
[1748468203325,0.09000166,107490.0,107480.0,0.88770649]
[1748468203637,0.09000166,107490.0,107480.0,0.90187408]
[1748468203834,0.09000166,107490.0,107480.0,0.90187383]
[1748468204035,0.09000166,107490.0,107480.0,0.90187382]
[1748468204234,0.09000166,107490.0,107480.0,0.88770649]
[1748468204538,0.17000166,107490.0,107480.0,1.03279303]
[1748468204935,0.17000166,107490.0,107480.0,1.04698376]
[1748468205132,0.17000166,107490.0,107480.0,1.03279303]
[1748468205437,0.17000166,107490.0,107480.0,0.99337879]
[1748468205929,0.17000166,107490.0,107480.0,1.04716156]
[1748468206125,0.17000166,107490.0,107480.0,0.98849171]
[1748468206325,0.17000166,107490.0,107480.0,0.98849154]
[1748468206527,0.17000166,107490.0,107480.0,0.94892715]
[1748468206726,0.35601676,107490.0,107480.0,0.94892716]
[1748468206922,0.97681676,107490.0,107480.0,0.38825062]
[1748468207136,0.97681676,107490.0,107480.0,0.19855062]
[1748468207327,1.50009676,107490.0,107480.0,0.19855062]
[1748468207638,1.50940291,107490.0,107480.0,0.19867062]
[1748468208038,1.50940291,107490.0,107480.0,0.34125484]
[1748468208735,1.50940291,107490.0,107480.0,0.34180891]
[1748468208936,1.50940291,107490.0,107480.0,0.38132981]
[1748468209133,1.50940291,107490.0,107480.0,0.30217291]
[1748468209326,1.50940291,107490.0,107480.0,0.36129268]
[1748468210626,1.08460291,107490.0,107480.0,0.36129268]
[1748468210827,1.50944291,107490.0,107480.0,0.36129268]
[1748468211332,1.50944291,107490.0,107480.0,0.33214864]
[1748468211934,1.50944291,107490.0,107480.0,0.27302887]
[1748468219149,1.50944291,107490.0,107480.0,0.33214864]
[1748468219733,1.50944291,107490.0,107480.0,0.39000228]
[1748468220838,1.50944291,107490.0,107480.0,0.33214864]
[1748468222153,1.50948291,107490.0,107480.0,0.34633231]
[1748468222345,1.50948291,107490.0,107480.0,0.27302887]
[1748468223341,1.50948291,107490.0,107480.0,0.33087831]
[1748468223736,1.50948291,107490.0,107480.0,0.38988497]
[1748468223941,1.14868291,107490.0,107480.0,0.33203553]
[1748468224142,1.50948291,107490.0,107480.0,0.33203553]
[1748468225049,1.50948291,107490.0,107480.0,0.34621637]
[1748468225247,1.50948291,107490.0,107480.0,0.33203553]
[1748468225649,1.50948291,107490.0,107480.0,0.34621648]
[1748468225849,1.50948291,107490.0,107480.0,0.33203553]
[1748468226854,1.50948291,107490.0,107480.0,0.34621515]
[1748468227159,1.50017676,107490.0,107480.0,0.34621515]
[1748468227347,1.50017676,107490.0,107480.0,0.34621486]
[1748468227546,1.50017676,107490.0,107480.0,0.33203553]
[1748468227751,1.50017676,107490.0,107480.0,0.34621486]
[1748468228953,1.07529676,107490.0,107480.0,0.34621461]
[1748468229154,1.50017676,107490.0,107480.0,0.33203553]
[1748468229346,1.50017676,107490.0,107480.0,0.34621455]
[1748468229547,1.50017676,107490.0,107480.0,0.34621446]
[1748468229946,1.50017676,107490.0,107480.0,0.34621463]
[1748468230354,1.50017676,107490.0,107480.0,0.34621458]
[1748468230555,1.50017676,107490.0,107480.0,0.34621549]
[1748468230958,1.50017676,107490.0,107480.0,0.33203553]
[1748468231150,1.50972921,107490.0,107480.0,0.28720701]
[1748468231347,1.50972921,107490.0,107480.0,0.34357815]
[1748468232250,1.50972921,107490.0,107480.0,0.35775371]
[1748468232452,1.50972921,107490.0,107480.0,0.28720575]
[1748468232656,1.50972921,107490.0,107480.0,0.27302887]
[1748468233355,1.50972921,107490.0,107480.0,0.1861524]
[1748468233853,1.18062921,107490.0,107480.0,0.1861524]
[1748468234054,1.54142921,107490.0,107480.0,0.1861524]
[1748468234255,1.54142921,107490.0,107480.0,0.25670168]
[1748468234553,1.54142921,107490.0,107480.0,0.37272219]
[1748468235960,1.54142921,107490.0,107480.0,0.38690441]
[1748468236161,1.54142921,107490.0,107480.0,0.37272219]
[1748468236366,1.54142921,107490.0,107480.0,0.41762752]
[1748468236753,1.54142921,107490.0,107480.0,0.41762868]
[1748468236953,1.54142921,107490.0,107480.0,0.44833373]
[1748468237155,1.54142921,107490.0,107480.0,0.46254088]
[1748468237359,1.18062921,107490.0,107480.0,0.44833373]
[1748468237566,1.54142921,107490.0,107480.0,0.36129907]
[1748468237757,1.54142921,107490.0,107480.0,0.34708445]
[1748468238259,1.54142921,107490.0,107480.0,0.36129908]
[1748468238453,1.54142921,107490.0,107480.0,0.34708445]
[1748468238653,1.54142921,107490.0,107480.0,0.34696445]
[1748468239067,1.54142921,107490.0,107480.0,0.36117929]
[1748468239268,1.54142921,107490.0,107480.0,0.34696445]
[1748468240255,1.54142921,107490.0,107480.0,0.36117946]
[1748468240461,1.54142921,107490.0,107480.0,0.34696445]
[1748468240764,1.54138921,107490.0,107480.0,0.34696457]
[1748468241061,1.54138921,107490.0,107480.0,0.36118093]
[1748468241657,1.54138921,107490.0,107480.0,0.34696457]
[1748468241863,1.53183676,107490.0,107480.0,0.34696457]
[1748468242254,1.53183676,107490.0,107480.0,0.3611809]
[1748468242657,1.53183676,107490.0,107480.0,0.34696457]
[1748468242862,1.53183676,107490.0,107480.0,0.3611809]
[1748468243362,1.53183676,107490.0,107480.0,0.36118089]
[1748468243663,1.53183676,107490.0,107480.0,0.36118093]
[1748468244763,1.53183676,107490.0,107480.0,0.39188093]
[1748468245156,1.53183676,107490.0,107480.0,0.3918803]
[1748468245355,1.53183676,107490.0,107480.0,0.39188022]
[1748468245559,1.53183676,107490.0,107480.0,0.37766394]
[1748468245764,1.53183676,107490.0,107480.0,0.39188024]
[1748468247559,1.53183676,107490.0,107480.0,0.37766394]
[1748468248157,1.53183676,107490.0,107480.0,0.39187973]
[1748468248352,1.53183676,107490.0,107480.0,0.37766394]
[1748468248558,1.53183676,107490.0,107480.0,0.39187922]
[1748468248868,1.53183676,107490.0,107480.0,0.39187934]
[1748468249072,1.53183676,107490.0,107480.0,0.37766394]
[1748468249569,1.53183676,107490.0,107480.0,0.37766462]
[1748468250667,1.53183676,107490.0,107480.0,0.39187987]
[1748468250862,1.53183676,107490.0,107480.0,0.37766462]
[1748468251257,1.53183676,107490.0,107480.0,0.39187972]
[1748468251458,1.53183676,107490.0,107480.0,0.39187971]
[1748468251667,1.53183676,107490.0,107480.0,0.39187962]
[1748468251873,1.53183676,107490.0,107480.0,0.37766462]
[1748468252465,1.53183676,107490.0,107480.0,0.39187965]
[1748468252666,1.53183676,107490.0,107480.0,0.37766462]
[1748468254163,1.53183676,107490.0,107480.0,0.38045462]
[1748468255862,1.53183676,107490.0,107480.0,0.39466584]
[1748468256064,1.53183676,107490.0,107480.0,0.38045462]
[1748468256462,1.53183676,107490.0,107480.0,0.39466589]
[1748468256663,1.53183676,107490.0,107480.0,0.38045462]
[1748468257066,1.53183676,107490.0,107480.0,0.45142772]
[1748468257271,1.53183676,107490.0,107480.0,0.39466585]
[1748468257473,1.53183676,107490.0,107480.0,0.39466586]
[1748468257664,1.53183676,107490.0,107480.0,0.38045462]
[1748468257869,1.17103676,107490.0,107480.0,0.38045462]
[1748468258065,1.53183676,107490.0,107480.0,0.38045462]
[1748468258263,1.53183676,107490.0,107480.0,0.3946658]
[1748468258467,1.53183676,107490.0,107480.0,0.38045462]
[1748468258672,1.53183676,107490.0,107480.0,0.39465731]
[1748468258863,1.53183676,107490.0,107480.0,0.38044598]
[1748468259873,1.53183676,107490.0,107480.0,0.39465725]
[1748468260073,1.53183676,107490.0,107480.0,0.39465723]
[1748468260378,1.53183676,107490.0,107480.0,0.38044598]
[1748468260771,1.53183676,107490.0,107480.0,0.39465697]
[1748468260964,1.53183676,107490.0,107480.0,0.39465675]
[1748468261365,1.53183676,107490.0,107480.0,0.39465549]
[1748468261571,1.53183676,107490.0,107480.0,0.38044598]
[1748468262160,1.53183676,107490.0,107480.0,0.39465581]
[1748468262377,1.53183676,107490.0,107480.0,0.56460078]
[1748468262671,1.53183676,107490.0,107480.0,0.5788106]
[1748468262873,1.53183676,107490.0,107480.0,0.56460078]
[1748468263177,1.53183676,107490.0,107480.0,0.56444078]
[1748468263473,1.53183676,107490.0,107480.0,0.5786506]
[1748468263669,1.53183676,107490.0,107480.0,0.56444078]
[1748468263977,1.53183676,107490.0,107480.0,0.57865008]
[1748468264777,1.53183676,107490.0,107480.0,0.57865014]
[1748468265278,1.53183676,107490.0,107480.0,0.57864998]
[1748468265576,1.53183676,107490.0,107480.0,0.57865007]
[1748468266573,1.53183676,107490.0,107480.0,0.57864963]
[1748468267174,1.53183676,107490.0,107480.0,0.56444078]
[1748468267371,1.53183676,107490.0,107480.0,0.57864952]
[1748468267573,1.53183676,107490.0,107480.0,0.56443872]
[1748468267877,1.53183676,107490.0,107480.0,0.57864754]
[1748468268077,1.53183676,107490.0,107480.0,0.56443872]
[1748468268379,1.53183676,107490.0,107480.0,0.57864744]
[1748468268581,1.53183676,107490.0,107480.0,0.57864774]
[1748468268770,1.53183676,107490.0,107480.0,0.56443622]
[1748468268972,1.53183676,107490.0,107480.0,0.57864531]
[1748468269575,1.53183676,107490.0,107480.0,0.56443622]
[1748468269780,1.53183676,107490.0,107480.0,0.57864521]
[1748468270884,1.53183676,107490.0,107480.0,0.57864533]
[1748468271087,1.53183676,107490.0,107480.0,0.56443622]
[1748468271380,1.53183676,107490.0,107480.0,0.57864526]
[1748468271576,1.53183676,107490.0,107480.0,0.56443622]
[1748468271885,1.53183676,107490.0,107480.0,0.57864518]
[1748468272087,1.53175676,107490.0,107480.0,0.61093647]
[1748468272283,1.53175676,107490.0,107480.0,0.61093648]
[1748468272483,1.53175676,107490.0,107480.0,0.57863645]
[1748468273282,1.53175676,107490.0,107480.0,0.57863661]
[1748468273789,1.53175676,107490.0,107480.0,0.57863653]
[1748468274684,1.53175676,107490.0,107480.0,0.57863624]
[1748468274882,1.53175676,107490.0,107480.0,0.57863657]
[1748468275083,1.53175676,107490.0,107480.0,0.57863656]
[1748468275478,1.53175676,107490.0,107480.0,0.57863648]
[1748468275782,0.36690166,107490.0,107480.0,0.78176228]
[1748468275989,0.02690166,107490.0,107480.0,1.14886299]
[1748468276187,0.171,107500.0,107490.0,0.1860151]
[1748468276384,0.481,107500.0,107490.0,0.85540826]
[1748468276980,0.6669978,107500.0,107490.0,0.85540752]
[1748468277182,0.6669978,107500.0,107490.0,0.91200773]
[1748468277581,0.6669978,107500.0,107490.0,0.84121103]
[1748468277987,0.6669978,107500.0,107490.0,0.85540768]
[1748468278182,0.6669978,107500.0,107490.0,0.92617815]
[1748468278881,0.6669978,107500.0,107490.0,0.84121103]
[1748468279284,0.6669978,107500.0,107490.0,0.85538063]
[1748468279483,0.6669978,107500.0,107490.0,0.88141341]
[1748468279683,0.6669978,107500.0,107490.0,0.73673447]
[1748468279880,0.481,107500.0,107490.0,0.73673447]
[1748468280585,0.481,107500.0,107490.0,0.72256487]
[1748468280785,0.481,107500.0,107490.0,0.72535487]
[1748468281387,0.481,107500.0,107490.0,0.85508738]
[1748468282085,0.481,107500.0,107490.0,0.73951597]
[1748468282394,0.481,107500.0,107490.0,0.72535487]
[1748468282588,0.481,107500.0,107490.0,0.84090564]
[1748468282795,0.481,107500.0,107490.0,0.85506011]
[1748468282994,0.481,107500.0,107490.0,0.85506471]
[1748468284085,0.5115,107500.0,107490.0,0.84090564]
[1748468284292,0.5115,107500.0,107490.0,0.85506471]
[1748468284486,0.51601555,107500.0,107490.0,0.84090564]
[1748468284795,0.51601555,107500.0,107490.0,0.85506333]
[1748468284999,0.51601555,107500.0,107490.0,0.85506334]
[1748468285293,0.51601555,107500.0,107490.0,0.85506346]
[1748468285493,0.51601555,107500.0,107490.0,0.85787858]
[1748468285891,0.51601555,107500.0,107490.0,0.85495031]
[1748468286089,0.51601555,107500.0,107490.0,0.85495009]
[1748468286288,0.51601555,107500.0,107490.0,0.84079249]
[1748468286990,0.51601555,107500.0,107490.0,0.85495012]
[1748468287184,0.51601555,107500.0,107490.0,0.84079249]
[1748468287586,0.51601555,107500.0,107490.0,0.85495021]
[1748468287797,0.51601555,107500.0,107490.0,0.84079249]
[1748468288296,0.51601555,107500.0,107490.0,0.8549502]
[1748468288599,0.51601555,107500.0,107490.0,0.84079249]
[1748468289198,0.51601555,107500.0,107490.0,0.85495062]
[1748468289502,0.51601555,107500.0,107490.0,0.84079249]
[1748468289689,0.51601555,107500.0,107490.0,0.47999249]
[1748468290084,0.70201315,107500.0,107490.0,0.49415007]
[1748468290389,0.70201315,107500.0,107490.0,0.49414983]
[1748468290390,0.51601555,107500.0,107490.0,0.49414983]
[1748468290692,0.51601555,107500.0,107490.0,0.85494983]
[1748468290892,0.51601555,107500.0,107490.0,0.89936777]
[1748468291198,0.51601555,107500.0,107490.0,0.88521177]
[1748468291396,0.51601555,107500.0,107490.0,0.89936757]
[1748468291597,0.51601555,107500.0,107490.0,0.89936756]
[1748468291796,0.51601555,107500.0,107490.0,0.88521177]
[1748468292195,0.51601555,107500.0,107490.0,0.89936757]
[1748468292400,0.51601555,107500.0,107490.0,0.88521177]
[1748468292797,0.51601555,107500.0,107490.0,0.89936745]
[1748468292997,0.51601555,107500.0,107490.0,0.84079249]
[1748468293398,0.51601555,107500.0,107490.0,0.85494826]
[1748468293599,0.51601555,107500.0,107490.0,0.8852127]
[1748468293901,0.51601555,107500.0,107490.0,0.85785963]
[1748468294102,0.51601555,107500.0,107490.0,0.84370425]
[1748468294703,0.70201335,107500.0,107490.0,0.84370425]
[1748468295304,0.70201335,107500.0,107490.0,0.85785963]
[1748468295494,0.70201335,107500.0,107490.0,0.87201524]
[1748468295699,0.70201335,107500.0,107490.0,0.85785963]
[1748468297206,0.70201335,107500.0,107490.0,0.87201517]
[1748468297899,0.70201335,107500.0,107490.0,0.85785963]
[1748468298102,0.70201335,107500.0,107490.0,0.87201527]
[1748468298295,0.70201335,107500.0,107490.0,0.87201526]
[1748468298499,0.70201335,107500.0,107490.0,0.85785963]
[1748468298692,0.70201335,107500.0,107490.0,0.87203557]
[1748468299405,0.70201335,107500.0,107490.0,0.85787994]
[1748468300109,0.70201335,107500.0,107490.0,0.84163874]
[1748468300301,0.70201335,107500.0,107490.0,0.84163889]
[1748468301101,0.70201335,107500.0,107490.0,0.84164183]
[1748468301401,0.70201335,107500.0,107490.0,0.82747994]
[1748468302394,0.70201335,107500.0,107490.0,0.84164694]
[1748468302595,0.70201335,107500.0,107490.0,0.84164685]
[1748468302798,0.70201335,107500.0,107490.0,0.82747994]
[1748468303206,0.70201335,107500.0,107490.0,0.91043882]
[1748468303607,0.70201335,107500.0,107490.0,1.11363966]
[1748468304305,0.70201335,107500.0,107490.0,0.67402469]
[1748468304493,0.70201335,107500.0,107490.0,0.80450391]
[1748468304698,0.70201335,107500.0,107490.0,1.17948233]
[1748468304896,0.70201335,107500.0,107490.0,1.03482499]
[1748468305207,0.70201335,107500.0,107490.0,0.65984657]
[1748468305408,0.70201335,107500.0,107490.0,1.02064657]
[1748468305604,0.70201335,107500.0,107490.0,1.03482469]
[1748468305812,0.70201335,107500.0,107490.0,1.02064657]
[1748468307307,0.70201335,107500.0,107490.0,0.98874657]
[1748468307507,0.70201335,107500.0,107490.0,1.00295107]
[1748468307809,0.70201335,107500.0,107490.0,0.98874657]
[1748468310599,0.70201335,107500.0,107490.0,1.00295101]
[1748468310799,0.70201335,107500.0,107490.0,1.00295103]
[1748468311000,0.70201335,107500.0,107490.0,0.98874657]
[1748468311308,0.70201335,107500.0,107490.0,1.002951]
[1748468311508,0.70201335,107500.0,107490.0,0.98874657]
[1748468312006,0.70201335,107500.0,107490.0,0.98888669]
[1748468312202,0.70201335,107500.0,107490.0,1.00309105]
[1748468312396,0.70201335,107500.0,107490.0,0.98888669]
[1748468312599,0.70201335,107500.0,107490.0,1.00309092]
[1748468313011,0.70201335,107500.0,107490.0,0.98888669]
[1748468315016,0.70201335,107500.0,107490.0,1.00309066]
[1748468315197,0.70201335,107500.0,107490.0,0.98888669]
[1748468315397,0.70201335,107500.0,107490.0,1.00309107]
[1748468315997,0.70201335,107500.0,107490.0,0.98888669]
[1748468316705,0.70201335,107500.0,107490.0,1.00309377]
[1748468317011,0.70201335,107500.0,107490.0,0.98888669]
[1748468317212,0.70201335,107500.0,107490.0,1.00309373]
[1748468317409,0.70201335,107500.0,107490.0,0.98888669]
[1748468318713,0.70201335,107500.0,107490.0,0.93713799]
[1748468319211,0.70201335,107500.0,107490.0,1.00309587]
[1748468319419,0.70201335,107500.0,107490.0,0.98888888]
[1748468320512,0.70201335,107500.0,107490.0,1.00309572]
[1748468320715,0.70201335,107500.0,107490.0,1.00309706]
[1748468320913,0.70201335,107500.0,107490.0,0.98884318]
[1748468321113,0.70201335,107500.0,107490.0,1.00304351]
[1748468321309,0.70201335,107500.0,107490.0,0.98884318]
[1748468322013,0.70201335,107500.0,107490.0,1.00304035]
[1748468322214,0.70201335,107500.0,107490.0,0.98884318]
[1748468322409,0.70201335,107500.0,107490.0,1.00303811]
[1748468322708,0.70201335,107500.0,107490.0,0.98884318]
[1748468323216,0.70201335,107500.0,107490.0,1.00304002]
[1748468323415,0.70201335,107500.0,107490.0,1.00304001]
[1748468323612,0.70201335,107500.0,107490.0,1.00303878]
[1748468323818,0.70201335,107500.0,107490.0,0.98884318]
[1748468324324,0.70201335,107500.0,107490.0,1.0030376]
[1748468324622,0.70201335,107500.0,107490.0,0.98884318]
[1748468325316,0.70201335,107500.0,107490.0,1.00299117]
[1748468325510,0.70201335,107500.0,107490.0,0.98879675]
[1748468325914,0.70201335,107500.0,107490.0,1.00299104]
[1748468326116,0.70201335,107500.0,107490.0,0.97879675]
[1748468327119,0.70201335,107500.0,107490.0,0.99299095]
[1748468327319,0.70201335,107500.0,107490.0,0.99299098]
[1748468327521,0.70201335,107500.0,107490.0,0.97879675]
[1748468328525,0.70201335,107500.0,107490.0,0.99299092]
[1748468328717,0.70201335,107500.0,107490.0,0.99299122]
[1748468328922,0.70201335,107500.0,107490.0,0.97879803]
[1748468329222,0.70201335,107500.0,107490.0,0.99299264]
[1748468329415,0.70201335,107500.0,107490.0,0.97879803]
[1748468329927,0.70201335,107500.0,107490.0,0.99299307]
[1748468330410,0.70201335,107500.0,107490.0,0.99299289]
[1748468331023,0.70201335,107500.0,107490.0,0.99299291]
[1748468331223,0.70201335,107500.0,107490.0,0.9929929]
[1748468331724,0.70201335,107500.0,107490.0,0.99299305]
[1748468332325,0.70201335,107500.0,107490.0,0.9929932]
[1748468332719,0.70201335,107500.0,107490.0,0.99299334]
[1748468333214,0.70201335,107500.0,107490.0,0.99299401]
[1748468333724,0.70201335,107500.0,107490.0,0.99299418]
[1748468333921,0.70201335,107500.0,107490.0,0.97879846]
[1748468334624,0.70201335,107500.0,107490.0,0.97880957]
[1748468335123,0.70201335,107500.0,107490.0,0.99300558]
[1748468335831,0.70201335,107500.0,107490.0,0.63220558]
[1748468336027,0.70201335,107500.0,107490.0,0.99300649]
[1748468336231,0.70201335,107500.0,107490.0,0.99300657]
[1748468336417,0.70201335,107500.0,107490.0,0.97880957]
[1748468336612,0.70201335,107500.0,107490.0,0.9271023]
[1748468336814,0.70201335,107500.0,107490.0,0.84419636]
[1748468337018,0.70201335,107500.0,107490.0,0.85839348]
[1748468337725,0.70201335,107500.0,107490.0,0.84419636]
[1748468337918,0.51601555,107500.0,107490.0,0.84419636]
[1748468338118,0.51601555,107500.0,107490.0,0.85839338]
[1748468338318,0.51601555,107500.0,107490.0,0.85419636]
[1748468338720,0.51601555,107500.0,107490.0,0.92010606]
[1748468339020,0.51601555,107500.0,107490.0,1.00301195]
[1748468339623,0.51601555,107500.0,107490.0,1.03531244]
[1748468340225,0.51601555,107500.0,107490.0,1.03531254]
[1748468340419,0.51601555,107500.0,107490.0,1.02111509]
[1748468340830,0.51601555,107500.0,107490.0,1.03531272]
[1748468341928,0.51601555,107500.0,107490.0,1.03531269]
[1748468342131,0.51601555,107500.0,107490.0,0.66031509]
[1748468342329,0.51601555,107500.0,107490.0,1.03531259]
[1748468342833,0.51601555,107500.0,107490.0,1.03531268]
[1748468343327,0.51601555,107500.0,107490.0,0.88650226]
[1748468343631,0.51601555,107500.0,107490.0,0.90069977]
[1748468343832,0.51601555,107500.0,107490.0,0.90069982]
[1748468344426,0.51601555,107500.0,107490.0,0.98360576]
[1748468344726,0.51601555,107500.0,107490.0,0.9694082]
[1748468345033,0.51601555,107500.0,107490.0,0.90069981]
[1748468345334,0.51601555,107500.0,107490.0,0.98360575]
[1748468345634,0.51601555,107500.0,107490.0,0.98360589]
[1748468346026,0.51601555,107500.0,107490.0,0.88650226]
[1748468346227,0.5115,107500.0,107490.0,0.90069996]
[1748468346630,0.5115,107500.0,107490.0,1.03517054]
[1748468347135,0.5115,107500.0,107490.0,1.03517029]
[1748468347329,0.51601555,107500.0,107490.0,1.02097284]
[1748468347533,0.51601555,107500.0,107490.0,1.0351704]
[1748468347727,0.51601555,107500.0,107490.0,1.02097284]
[1748468347928,0.51601555,107500.0,107490.0,1.0351704]
[1748468349342,0.51601555,107500.0,107490.0,1.02097284]
[1748468349638,0.51601555,107500.0,107490.0,1.03516919]
[1748468349835,0.51601555,107500.0,107490.0,1.03516897]
[1748468350036,0.20601555,107500.0,107490.0,1.03516912]
[1748468350235,0.29601555,107500.0,107490.0,1.03516912]
[1748468350536,0.29601555,107500.0,107490.0,1.03516913]
[1748468351044,0.29601555,107500.0,107490.0,1.03516911]
[1748468351239,0.29601555,107500.0,107490.0,1.03516912]
[1748468351441,0.29601555,107500.0,107490.0,1.02097284]
[1748468351944,0.29601555,107500.0,107490.0,1.03504092]
[1748468352832,0.29601555,107500.0,107490.0,1.02084467]
[1748468353033,0.29601555,107500.0,107490.0,1.03504119]
[1748468353443,0.29601555,107500.0,107490.0,1.02084467]
[1748468354839,0.29601555,107500.0,107490.0,0.93793873]
[1748468355037,0.20601555,107500.0,107490.0,0.98113873]
[1748468355244,0.20601555,107500.0,107490.0,0.99533441]
[1748468355444,0.2015,107500.0,107490.0,0.99533441]
[1748468355646,0.2015,107500.0,107490.0,0.99533403]
[1748468355949,0.2015,107500.0,107490.0,0.98113873]
[1748468356143,0.2015,107500.0,107490.0,0.94376895]